{"text_format":"1","workbook":"xlsx","n_sheets":2,"sheets":["Pasiūlymas","Subtiekėjai ir priedai"],"not_rendered":{"charts":0,"images":0,"macros":1,"external_links":0,"defined_names":0,"comments":0,"pivot_tables":0},"unopened":[],"bounds":{"document_bytes":16777216,"sheet_cells":100000,"rows_first":2000,"rows_last":500,"rows_between":2000,"halvings":0,"cell_chars":16384,"cell_head_chars":4096},"cells_cut":0,"cells_raw":0,"read":"whole","date_system":"1900"}

{"sheet":"Pasiūlymas","index":0,"n_rows":262,"n_cols":8,"rows_kept":262,"cut":false,"hidden":false,"merged":[[27,0,27,5],[28,0,28,5],[24,0,24,5],[25,0,25,5],[26,0,26,5],[18,0,18,1],[18,2,18,5],[23,0,23,5],[19,0,19,1],[20,0,20,1],[19,2,19,5],[20,2,20,5],[22,0,22,5],[29,0,29,2],[29,3,29,5],[11,0,11,1],[11,2,11,5],[12,0,12,1],[12,2,12,5],[13,0,13,1],[13,2,13,5],[14,0,14,1],[14,2,14,5],[15,0,15,1],[15,2,15,5],[16,0,16,1],[16,2,16,5],[17,0,17,1],[17,2,17,5]]}
[]
["PIRKIMO SĄLYGŲ PRIEDAS \"PASIŪLYMŲ FORMA\""]
[]
["CHIRURGINIAI SIŪLAI"]
[]
["Kam:","VšĮ LSMU Kauno ligoninė"]
[]
["Data:","2022-11-28"]
["Nr.:","Nr.63-22PK"]
["Vieta:","Vilnius"]
[]
["Tiekėjo pavadinimas / Ūkio subjektų grupės nariai:",null,"UAB Airimedus"]
["Tiekėjo kodas (-ai):",null,126237331]
["Tiekėjo adresas (-ai):",null,"A,Stulginskio 5-10, Vilnius"]
["Tiekėjo PVM mokėtojo kodas(-ai):",null,"LT100001077410"]
["Tiekėjo / Ūkio subjektų grupės atsakingo partnerio sąskaitos numeris, banko pavadinimas ir banko kodas (-ai):",null,"AB Šiaulių bankas LT04 7182 4000 2746 7098"]
["Asmens atsakingo už pasiūlymą vardas, pavardė:",null,"Liutauras Dauderys"]
["Asmens atsakingo už pasiūlymą telefono numeris, el. pašto adresas:",null,"8 685 65001;  info@airimedus.lt"]
["Tiekėjo / Ūkio subjektų grupės, laimėjimo atveju, pasirašančio sutartį asmens vardas, pavardė, pareigos:",null,"direktorius Liutauras Dauderys"]
["Tiekėjo / Ūkio subjektų grupės, laimėjimo atveju, už sutarties vykdymą atsakingo asmens vardas, pavardė, telefono numeris, elektroninio pašto adresas:",null,"direktorius Liutauras Dauderys"]
["(1) Tiekėjo / Ūkio subjektų grupės narių, (2) ūkio subjektų, kurių pajėgumais remiamasi, ir (3) jei pašalinimo pagrindai taikomi visiems subtiekėjams - subtiekėjų, kolegialaus priežiūros organo (Stebėtojų tarybos) ir (ar) kolegialaus valdymo organo (Valdybos) narių sąrašas (jei sudaryta) ir (ar) asmuo, kuriam suteikti VPĮ 46 str. 2 d. 2 p. numatyti įgaliojimai",null,null,null,null,null,{"$f":"IF((SUMPRODUCT(--(C21=\"\"))>0), \"Privaloma užpildyti, kai taikomi pašalinimo pagrindai\", \"\")","v":"Privaloma užpildyti, kai taikomi pašalinimo pagrindai"}]
[]
["Tiekėjo patvirtinimai:"]
["1. Šiuo pasiūlymu pažymime, kad sutinkame su visomi pirkimo sąlygomis, nustatytomis:"]
["1.1. viešojo pirkimo dokumentuose"]
["1.2. kituose pirkimo dokumentuose (jų paaiškinimuose, papildymuose)."]
["2. Patvirtiname, kad informacija ir duomenys, pateikti pasiūlyme, yra teisingi ir apima viską, ko reikia tinkamam sutarties įvykdymui"]
["3. Patvirtiname, kad jei pasiūlyme nenurodyti kolegialaus priežiūros/valdymo organų nariai, šie organai juridiniuose asmenyse nėra sudaryti (taikoma, kai pirkimo dokumentuose nustatyti pašalinimo pagrindai)."]
["4. Pasiūlymas galioja iki termino, nustatyto pirkimo dokumentuose."]
["5. Tais atvejais, kai pagal galiojančius teisės aktus tiekėjui nereikia mokėti PVM, jis nurodo priežastis, dėl kurių PVM nemoka:"]
[]
[]
["3. DALIS","BESIREZORBUOJANTIS SINTETINIS POLIGLAKTINO CHIRURGINIS SIŪLAS"]
[]
["Tiekėjo pasiūlymas:"]
["Nr.","Pavadinimas","Kiekis","Mato vienetas","Įkainis be PVM, Eur","Suma be PVM, Eur","Siūlomos prekės, pavadinimas, gamintojas, kodas","Tiekėjo siūlomi parametrai ir parametrą pagrindžiantys dokumentai"]
["3.","Besirezorbuojantis sintetinis poliglaktino chirurginis siūlas"]
["3.1.","Besirezorbuojantis sintetinis poliglaktino chirurginis siūlas",12,"vnt",1.03,{"$f":"IF(ISBLANK(E38),\"\", PRODUCT(C38,E38))","v":12.36},"SMI ag. Surgicryl 910. Ref 15101512"]
["3.1.1.","Poliglaktino chirurginis siūlas , multifilamentinis",null,null,null,null,null,"Katalogas. 9 -18 puslapis. Poliglaktinas"]
["3.1.2.","Po 2 sav.išlieka 75 (±5%), po 3 sav. išlieka 40-50 (±5%) stiprumo. Siūlas rezorbuojasi per 56-70 dienų.",null,null,null,null,null," Po 3 sav išlieka 50%.  Siūlas rezorbuojasi per 56-70 dienų"]
["3.1.3.","Siūlo storis 5/0",null,null,null,null,null,"storis 5/0"]
["3.1.4.","Siūlo ilgis 45 cm (± 1cm)",null,null,null,null,null,"siūlo ilgis 45cm"]
["3.1.5.","Siūlų skaičius pakelyje ne daugiau1 vnt",null,null,null,null,null,"pakeluje 1"]
["3.1.6.","Adatos tipas - pjaunanti 3/8",null,null,null,null,null,"adata pjaunanti 3/8"]
["3.1.7.","Adatų skaičius ne daugiau 1 vnt",null,null,null,null,null,"adata1"]
["3.1.8.","Adatos ilgis 12 mm  (±1mm)",null,null,null,null,null,"adatos ilgis 12mm"]
["3.2.","Besirezorbuojantis sintetinis poliglaktino chirurginis siūlas",48,"vnt",1.06,{"$f":"IF(ISBLANK(E47),\"\", PRODUCT(C47,E47))","v":50.88},"SMI ag. Surgicryl 910. Ref 15071512"]
["3.2.1.","Poliglaktino chirurginis siūlas , multifilamentinis",null,null,null,null,null,"Katalogas. 9 -18 puslapis. Poliglaktinas"]
["3.2.2.","Po 2 sav.išlieka 75 (±5%), po 3 sav. išlieka 40-50 (±5%) stiprumo. Siūlas rezorbuojasi per 56-70 dienų.",null,null,null,null,null," Po 3 sav išlieka 50%.  Siūlas rezorbuojasi per 56-70 dienų"]
["3.2.3.","Siūlo storis 6/0",null,null,null,null,null,"storis 6/0"]
["3.2.4.","Siūlo ilgis 45 cm (± 1cm)",null,null,null,null,null,"siūlo ilgis 45cm"]
["3.2.5.","Siūlų skaičius pakelyje ne daugiau 1 vnt",null,null,null,null,null,"pakeluje 1"]
["3.2.6.","Adatos tipas -pjaunanti 3/8",null,null,null,null,null,"adata pjaunanti 3/8"]
["3.2.7.","Adatų skaičius ne daugiau 1 vnt",null,null,null,null,null,"adata1"]
["3.2.8.","Adatos ilgis 12 mm  (±1mm)",null,null,null,null,null,"adatos ilgis 12mm"]
["3.3.","Besirezorbuojantis sintetinis poliglaktino chirurginis siūlas",600,"vnt.",0.92,{"$f":"IF(ISBLANK(E56),\"\", PRODUCT(C56,E56))","v":552},"SMI ag. Surgicryl 910. Ref 15300126"]
["3.3.1.","Poliglaktino chirurginis siūlas , multifilamentinis",null,null,null,null,null,"Katalogas. 9 -18 puslapis. Poliglaktinas"]
["3.3.2.","Po 2 sav.išlieka 75 (±5%), po 3 sav. išlieka 40-50 (±5%) stiprumo. Siūlas rezorbuojasi per 56-70 dienų.",null,null,null,null,null," Po 3 sav išlieka 50%.  Siūlas rezorbuojasi per 56-70 dienų"]
["3.3.3.","Siūlo storis 2/0",null,null,null,null,null,"storis 2/0"]
["3.3.4.","Siūlo ilgis 75 cm (± 5cm)",null,null,null,null,null,"siūlo ilgis 75cm"]
["3.3.5.","Siūlų skaičius pakelyje ne daugiau 1 vnt.",null,null,null,null,null,"pakelyje 1"]
["3.3.6.","Adatos tipas - apvali 1/2",null,null,null,null,null,"adata apvali 1/2"]
["3.3.7.","Adatų skaičius ne daugiau 1 vnt",null,null,null,null,null,"adata1"]
["3.3.8.","Adatos ilgis 25 - 27 mm",null,null,null,null,null,"adatos ilgis 26 mm"]
["3.4.","Besirezorbuojantis sintetinis poliglaktino chirurginis siūlas",240,"vnt.",0.93,{"$f":"IF(ISBLANK(E65),\"\", PRODUCT(C65,E65))","v":223.20000000000002},"SMI ag. Surgicryl 910. Ref 15150126"]
["3.4.1.","Poliglaktino chirurginis siūlas , multifilamentinis",null,null,null,null,null,"Katalogas. 9 -18 puslapis. Poliglaktinas"]
["3.4.2.","Po 2 sav.išlieka 75 (±5%), po 3 sav. išlieka 40-50 (±5%) stiprumo. Siūlas rezorbuojasi per 56-70 dienų.",null,null,null,null,null," Po 3 sav išlieka 50%.  Siūlas rezorbuojasi per 56-70 dienų"]
["3.4.3.","Siūlo storis 4/0",null,null,null,null,null,"storis 4/0"]
["3.4.4.","Siūlo ilgis 75 cm (± 5cm)",null,null,null,null,null,"siūlo ilgis 75cm"]
["3.4.5.","Siūlų skaičius pakelyje ne daugiau 1 vnt.",null,null,null,null,null,"pakelyje 1"]
["3.4.6.","Adatos tipas - apvali 1/2",null,null,null,null,null,"adata apvali 1/2"]
["3.4.7.","Adatų skaičius ne daugiau 1 vnt",null,null,null,null,null,"adata1"]
["3.4.8.","Adatos ilgis 26 - 27 mm",null,null,null,null,null,"adatos ilgis 26 mm"]
["3.5.","Besirezorbuojantis sintetinis poliglaktino chirurginis siūlas",120,"vnt.",2.48,{"$f":"IF(ISBLANK(E74),\"\", PRODUCT(C74,E74))","v":297.60000000000002},"SMI ag. Surgicryl 910. Ref 15150045"]
["3.5.1.","Poliglaktino chirurginis siūlas , multifilamentinis",null,null,null,null,null,"Katalogas. 9 -18 puslapis. Poliglaktinas"]
["3.5.2.","Po 2 sav.išlieka 75 (±5%), po 3 sav. išlieka 40-50 (±5%) stiprumo. Siūlas rezorbuojasi per 56-70 dienų.",null,null,null,null,null," Po 3 sav išlieka 50%.  Siūlas rezorbuojasi per 56-70 dienų"]
["3.5.3.","Siūlo storis 4/0",null,null,null,null,null,"storis 4/0"]
["3.5.4.","Siūlo ilgis 45 cm (± 1cm)",null,null,null,null,null,"siūlo ilgis 45cm"]
["3.5.5.","Siūlų skaičius pakelyje ne mažiau 12 vnt.",null,null,null,null,null,"pakelyje 12"]
["3.6.","Besirezorbuojantis sintetinis poliglaktino chirurginis siūlas",48,"vnt.",1.32,{"$f":"IF(ISBLANK(E80),\"\", PRODUCT(C80,E80))","v":63.36},"SMI ag. Surgicryl 910. Ref 15150045-6"]
["3.6.1.","Poliglaktino chirurginis siūlas , multifilamentinis",null,null,null,null,null,"Katalogas. 9 -18 puslapis. Poliglaktinas"]
["3.6.2.","Po 2 sav.išlieka 75 (±5%), po 3 sav. išlieka 40-50 (±5%) stiprumo. Siūlas rezorbuojasi per 56-70 dienų.",null,null,null,null,null," Po 3 sav išlieka 50%.  Siūlas rezorbuojasi per 56-70 dienų"]
["3.6.3.","Siūlo storis 4/0",null,null,null,null,null,"storis 4/0"]
["3.6.4.","Siūlo ilgis 45 cm (± 1cm)",null,null,null,null,null,"siūlo ilgis 45cm"]
["3.6.5.","Siūlų skaičius pakelyje ne mažiau 6 vnt.",null,null,null,null,null,"pakelyje 6"]
["3.7.","Besirezorbuojantis sintetinis poliglaktino chirurginis siūlas",300,"vnt.",4.5,{"$f":"IF(ISBLANK(E86),\"\", PRODUCT(C86,E86))","v":1350},"SMI ag. Surgicryl 910. Ref O910072"]
["3.7.1.","Poliglaktino chirurginis siūlas , multifilamentinis",null,null,null,null,null,"Katalogas. 97 puslapis. Poliglaktinas"]
["3.7.2.","Po 2 sav.išlieka 75 (±5%), po 3 sav. išlieka 40-50 (±5%) stiprumo. Siūlas rezorbuojasi per 56-70 dienų.",null,null,null,null,null," Po 3 sav išlieka 50%.  Siūlas rezorbuojasi per 56-70 dienų"]
["3.7.3.","Siūlo storis 7/0",null,null,null,null,null,"storis 7/0"]
["3.7.4.","Siūlo ilgis 45 cm (± 1cm)",null,null,null,null,null,"siūlo ilgis 45cm"]
["3.7.5.","Siūlų skaičius pakelyje ne daugiau 1 vnt.",null,null,null,null,null,"pakelyje 1"]
["3.7.6.","Adatos tipas - spatula 3/8",null,null,null,null,null,"adata spatula 3/8 "]
["3.7.7.","Adatų skaičius ne mažiau 2 vnt.",null,null,null,null,null,"adata 2"]
["3.7.8.","Adatos ilgis 6,0 - 6,2 mm",null,null,null,null,null,"adatos ilgis 6 mm"]
["3.8.","Besirezorbuojantis sintetinis poliglaktino chirurginis siūlas",1500,"vnt",0.9,{"$f":"IF(ISBLANK(E95),\"\", PRODUCT(C95,E95))","v":1350},"SMI ag. Surgicryl 910. Ref 15200126"]
["3.8.1.","Poliglaktino chirurginis siūlas , multifilamentinis",null,null,null,null,null,"Katalogas. 9 -18 puslapis. Poliglaktinas"]
["3.8.2.","Po 2 sav.išlieka 75 (±5%), po 3 sav. išlieka 40-50 (±5%) stiprumo. Siūlas rezorbuojasi per 56-70 dienų.",null,null,null,null,null,"Po 3 sav išlieka 50%.  Siūlas rezorbuojasi per 56-70 dienų"]
["3.8.3.","Siūlo storis USP - 3/0",null,null,null,null,null,"storis 3/0"]
["3.8.4.","Siūlo ilgis 70-75 cm",null,null,null,null,null,"siūko ilgis 75cm"]
["3.8.5.","Siūlo spalva - Dažytas",null,null,null,null,null,"dažytas"]
["3.8.6.","Adatos tipas - Apvali 1/2",null,null,null,null,null,"apvali 1/2"]
["3.8.7.","Adatos ilgis 25-26 mm",null,null,null,null,null,"26mm"]
["3.9.","Besirezorbuojantis sintetinis poliglaktino chirurginis siūlas",120,"vnt",0.96,{"$f":"IF(ISBLANK(E103),\"\", PRODUCT(C103,E103))","v":115.19999999999999},"SMI ag. Surgicryl 910. Ref 15400148"]
["3.9.1.","Poliglaktino chirurginis siūlas , multifilamentinis",null,null,null,null,null,"Katalogas. 9 -18 puslapis. Poliglaktinas"]
["3.9.2.","Po 2 sav.išlieka 75 (±5%), po 3 sav. išlieka 40-50 (±5%) stiprumo. Siūlas rezorbuojasi per 56-70 dienų.",null,null,null,null,null,"Po 3 sav išlieka 50%.  Siūlas rezorbuojasi per 56-70 dienų"]
["3.9.3.","Siūlo storis USP - 1",null,null,null,null,null,"storis 1"]
["3.9.4.","Siūlo ilgis 85-90 cm",null,null,null,null,null,"siūko ilgis 90cm"]
["3.9.5.","Siūlo spalva - Dažytas",null,null,null,null,null,"dažytas"]
["3.9.6.","Adatos tipas - Apvali 1/2",null,null,null,null,null,"apvali 1/2"]
["3.9.7.","Adatos ilgis 47-48 mm",null,null,null,null,null,"48 mm"]
["3.10.","Besirezorbuojantis sintetinis poliglaktino chirurginis siūlas",360,"vnt",0.96,{"$f":"IF(ISBLANK(E111),\"\", PRODUCT(C111,E111))","v":345.59999999999997},"SMI ag. Surgicryl 910. Ref 15400140"]
["3.10.1.","Poliglaktino chirurginis siūlas , multifilamentinis",null,null,null,null,null,"Katalogas. 9 -18 puslapis. Poliglaktinas"]
["3.10.2.","Po 2 sav.išlieka 75 (±5%), po 3 sav. išlieka 40-50 (±5%) stiprumo. Siūlas rezorbuojasi per 56-70 dienų.",null,null,null,null,null,"Po 3 sav išlieka 50%.  Siūlas rezorbuojasi per 56-70 dienų"]
["3.10.3.","Siūlo storis USP - 1",null,null,null,null,null,"storis 1"]
["3.10.4.","Siūlo ilgis 85-90 cm",null,null,null,null,null,"siūko ilgis 90cm"]
["3.10.5.","Siūlo spalva - Dažytas",null,null,null,null,null,"dažytas"]
["3.10.6.","Adatos tipas - Apvali 1/2",null,null,null,null,null,"apvali 1/2"]
["3.10.7.","Adatos ilgis 38-40 mm",null,null,null,null,null,"40 mm"]
["3.11.","Besirezorbuojantis sintetinis poliglaktino chirurginis siūlas",800,"vnt",0.94,{"$f":"IF(ISBLANK(E119),\"\", PRODUCT(C119,E119))","v":752},"SMI ag. Surgicryl 910. Ref 15350140"]
["3.11.1.","Poliglaktino chirurginis siūlas , multifilamentinis",null,null,null,null,null,"Katalogas. 9 -18 puslapis. Poliglaktinas"]
["3.11.2.","Po 2 sav.išlieka 75 (±5%), po 3 sav. išlieka 40-50 (±5%) stiprumo. Siūlas rezorbuojasi per 56-70 dienų.",null,null,null,null,null,"Po 3 sav išlieka 50%.  Siūlas rezorbuojasi per 56-70 dienų"]
["3.11.3.","Siūlo storis USP - 0",null,null,null,null,null,"storis 0"]
["3.11.4.","Siūlo ilgis 85-90 cm",null,null,null,null,null,"siūko ilgis 90cm"]
["3.11.5.","Siūlo spalva - Dažytas",null,null,null,null,null,"dažytas"]
["3.11.6.","Adatos tipas - Apvali 1/2",null,null,null,null,null,"apvali 1/2"]
["3.11.7.","Adatos ilgis 38-40 mm",null,null,null,null,null,"40 mm"]
[null,null,null,null,"Suma be PVM",{"$f":"IF((COUNT(C38:C126)<>COUNT(F38:F126)),\"\", SUM(F38:F126))","v":5112.2},{"$f":"IF((COUNT(C38:C126)<>COUNT(F38:F126)),\"Neužpildytos visų objektų kainos\", \"\")","v":""}]
[null,null,null,null,"PVM suma",{"$f":"F127*1.05-F127","v":255.61000000000058}]
[null,null,null,null,"Suma su PVM",{"$f":"IF(ISBLANK(F128), \"\", SUM(F127:F128))","v":5367.81}]
[]
[]
[]
["5. DALIS","BESIREZORBUOJANTIS SINTETINIS IŠ GLIKOLIDO IR KAPRALAKTONO CHIRURGINIS SIŪLAS"]
[]
["Tiekėjo pasiūlymas:"]
["Nr.","Pavadinimas","Kiekis","Mato vienetas","Įkainis be PVM, Eur","Suma be PVM, Eur","Siūlomos prekės, pavadinimas, gamintojas, kodas","Tiekėjo siūlomi parametrai ir parametrą pagrindžiantys dokumentai"]
["5.","Besirezorbuojantis sintetinis iš glikolido ir kapralaktono chirurginis siūlas"]
["5.1.","Besirezorbuojantis sintetinis iš glikolido ir kapralaktono chirurginis siūlas",240,"vnt",1.17,{"$f":"IF(ISBLANK(E138),\"\", PRODUCT(C138,E138))","v":280.79999999999995},"SMI. Surgicryl Monofast. Ref  16300126"]
["5.1.1.","Besirezorbuojantis sintetinis, monofilamentinis siūlas, pagamintas iš glikolido ir kapralaktono.",null,null,null,null,null,"Besirezorbuojantis sintetinis, monopilamentinis, pagamintas iš glikoilido ir kaprolaktono. Katalogas 33-38 psl"]
["5.1.2.","Pilna rezorbcija po 90-120±5% dienų. Stiprumo išlaikymas po 1 savaitės 50 - 60±10%, po 2 savaičių 20- 30±10% ",null,null,null,null,null,"Pilna rezorbcija po 90-12 dienų. Stiprumo išlaikymas 60% po 1 savaitės (7 dienų),"]
["5.1.3.","Siūlo storis USP - 2/0",null,null,null,null,null,"storis 2/0"]
["5.1.4.","Siūlo ilgis 70-75 cm",null,null,null,null,null,"ilgis 75cm"]
["5.1.5.","Siūlo spalva - Dažytas",null,null,null,null,null,"dažytas (violet)"]
["5.1.6.","Adatos tipas - Apvali 1/2",null,null,null,null,null,"apvali 1/2"]
["5.1.7.","Adatos ilgis 26-27mm",null,null,null,null,null,"26 mm"]
["5.2.","Besirezorbuojantis sintetinis iš glikolido ir kapralaktono chirurginis siūlas",360,"vnt",1.17,{"$f":"IF(ISBLANK(E146),\"\", PRODUCT(C146,E146))","v":421.2},"SMI. Surgicryl Monofast. Ref 16200117"]
["5.2.1.","Besirezorbuojantis sintetinis, monofilamentinis siūlas, pagamintas iš glikolido ir kapralaktono.",null,null,null,null,null,"Besirezorbuojantis sintetinis, monopilamentinis, pagamintas iš glikoilido ir kaprolaktono. Katalogas 33-38 psl"]
["5.2.2.","Pilna rezorbcija po 90-120±5% dienų. Stiprumo išlaikymas po 1 savaitės 50 - 60±10%, po 2 savaičių 20- 30±10% ",null,null,null,null,null,"Pilna rezorbcija po 90-12 dienų. Stiprumo išlaikymas 60% po 1 savaitės (7 dienų),"]
["5.2.3.","Siūlo storis USP - 3/0",null,null,null,null,null,"storis 3/0"]
["5.2.4.","Siūlo ilgis 70-75 cm",null,null,null,null,null,"ilgis 75cm"]
["5.2.5.","Siūlo spalva - Dažytas",null,null,null,null,null,"dažytas (violet)"]
["5.2.6.","Adatos tipas - Apvali 1/2",null,null,null,null,null,"apvali 1/2"]
["5.2.7.","Adatos ilgis 17-19 mm",null,null,null,null,null,"17 mm"]
["5.3.","Besirezorbuojantis sintetinis iš glikolido ir kapralaktono chirurginis siūlas",480,"vnt",1.1399999999999999,{"$f":"IF(ISBLANK(E154),\"\", PRODUCT(C154,E154))","v":547.19999999999993},"SMI. Surgicryl Monofast. Ref 16200126"]
["5.3.1.","Besirezorbuojantis sintetinis, monofilamentinis siūlas, pagamintas iš glikolido ir kapralaktono.",null,null,null,null,null,"Besirezorbuojantis sintetinis, monopilamentinis, pagamintas iš glikoilido ir kaprolaktono. Katalogas 33-38 psl"]
["5.3.2.","Pilna rezorbcija po 90-120±5% dienų. Stiprumo išlaikymas po 1 savaitės 50 - 60±10%, po 2 savaičių 20- 30±10% ",null,null,null,null,null,"Pilna rezorbcija po 90-12 dienų. Stiprumo išlaikymas 60% po 1 savaitės (7 dienų),"]
["5.3.3.","Siūlo storis USP - 3/0",null,null,null,null,null,"storis 3/0"]
["5.3.4.","Siūlo ilgis 70-75 cm",null,null,null,null,null,"ilgis 75cm"]
["5.3.5.","Siūlo spalva - Dažytas",null,null,null,null,null,"dažytas (violet)"]
["5.3.6.","Adatos tipas - Apvali 1/2",null,null,null,null,null,"apvali 1/2"]
["5.3.7.","Adatos ilgis 25-26 mm",null,null,null,null,null,"26 mm"]
["5.4.","Besirezorbuojantis sintetinis iš glikolido ir kapralaktono chirurginis siūlas",800,"vnt",1.1499999999999999,{"$f":"IF(ISBLANK(E162),\"\", PRODUCT(C162,E162))","v":919.99999999999989},"SMI. Surgicryl Monofast. Ref 16150122"]
["5.4.1.","Besirezorbuojantis sintetinis, monofilamentinis siūlas, pagamintas iš glikolido ir kapralaktono.",null,null,null,null,null,"Besirezorbuojantis sintetinis, monopilamentinis, pagamintas iš glikoilido ir kaprolaktono. Katalogas 33-38 psl"]
["5.4.2.","Pilna rezorbcija po 90-120±5% dienų. Stiprumo išlaikymas po 1 savaitės 50 - 60±10%, po 2 savaičių 20- 30±10% ",null,null,null,null,null,"Pilna rezorbcija po 90-12 dienų. Stiprumo išlaikymas 60% po 1 savaitės (7 dienų),"]
["5.4.3.","Siūlo storis USP - 4/0",null,null,null,null,null,"storis 4/0"]
["5.4.4.","Siūlo ilgis 70-75 cm",null,null,null,null,null,"ilgis 75cm"]
["5.4.5.","Siūlo spalva - Dažytas",null,null,null,null,null,"dažytas (violet)"]
["5.4.6.","Adatos tipas - Apvali 1/2",null,null,null,null,null,"apvali 1/2"]
["5.4.7.","Adatos ilgis 20-22 mm",null,null,null,null,null,"22 mm"]
["5.5.","Besirezorbuojantis sintetinis iš glikolido ir kapralaktono chirurginis siūlas",600,"vnt",1.21,{"$f":"IF(ISBLANK(E170),\"\", PRODUCT(C170,E170))","v":726},"SMI. Surgicryl Monofast. Ref 16151519"]
["5.5.1.","Besirezorbuojantis sintetinis, monofilamentinis siūlas, pagamintas iš glikolido ir kapralaktono.",null,null,null,null,null,"Besirezorbuojantis sintetinis, monopilamentinis, pagamintas iš glikoilido ir kaprolaktono. Katalogas 33-38 psl"]
["5.5.2.","Pilna rezorbcija po 90-120±5% dienų. Stiprumo išlaikymas po 1 savaitės 50 - 60±10%, po 2 savaičių 20- 30±10% ",null,null,null,null,null,"Pilna rezorbcija po 90-12 dienų. Stiprumo išlaikymas 60% po 1 savaitės (7 dienų),"]
["5.5.3.","Siūlo storis USP - 4/0",null,null,null,null,null,"storis 4/0"]
["5.5.4.","Siūlo ilgis 70-75 cm",null,null,null,null,null,"ilgis 75cm"]
["5.5.5.","Siūlo spalva - Bespalvis",null,null,null,null,null,"bespalvis"]
["5.5.6.","Adatos tipas - Pjaunanti 3/8",null,null,null,null,null,"pjaunanti 3/8"]
["5.5.7.","Adatos ilgis 18-20 mm",null,null,null,null,null,"19 mm"]
["5.6.","Besirezorbuojantis sintetinis iš glikolido ir kapralaktono chirurginis siūlas",360,"vnt",1.24,{"$f":"IF(ISBLANK(E178),\"\", PRODUCT(C178,E178))","v":446.4},"SMI. Surgicryl Monofast. Ref 16350136"]
["5.6.1.","Besirezorbuojantis sintetinis, monofilamentinis siūlas, pagamintas iš glikolido ir kapralaktono.",null,null,null,null,null,"Besirezorbuojantis sintetinis, monopilamentinis, pagamintas iš glikoilido ir kaprolaktono. Katalogas 33-38 psl"]
["5.6.2.","Pilna rezorbcija po 90-120±5% dienų. Stiprumo išlaikymas po 1 savaitės 50 - 60±10%, po 2 savaičių 20- 30±10% ",null,null,null,null,null,"Pilna rezorbcija po 90-12 dienų. Stiprumo išlaikymas 60% po 1 savaitės (7 dienų),"]
["5.6.3.","Siūlo storis USP - 0",null,null,null,null,null,"storis 0"]
["5.6.4.","Siūlo ilgis 70-90 cm",null,null,null,null,null,"ilgis 90 cm"]
["5.6.5.","Siūlo spalva - Dažytas",null,null,null,null,null,"dažytas (violet)"]
["5.6.6.","Adatos tipas - Apvali 1/2",null,null,null,null,null,"apvali 1/2"]
["5.6.7.","Adatos ilgis 36-40 mm",null,null,null,null,null,"36  mm"]
["5.7.","Besirezorbuojantis sintetinis iš glikolido ir kapralaktono chirurginis siūlas",120,"vnt",1.21,{"$f":"IF(ISBLANK(E186),\"\", PRODUCT(C186,E186))","v":145.19999999999999},"SMI. Surgicryl Monofast. Ref 16101516V"]
["5.7.1.","Besirezorbuojantis sintetinis, monofilamentinis siūlas, pagamintas iš glikolido ir kapralaktono.",null,null,null,null,null,"Besirezorbuojantis sintetinis, monopilamentinis, pagamintas iš glikoilido ir kaprolaktono. Katalogas 33-38 psl"]
["5.7.2.","Pilna rezorbcija po 90-120±5% dienų. Stiprumo išlaikymas po 1 savaitės 50 - 60±10%, po 2 savaičių 20- 30±10% ",null,null,null,null,null,"Pilna rezorbcija po 90-12 dienų. Stiprumo išlaikymas 60% po 1 savaitės (7 dienų),"]
["5.7.3.","Siūlo storis USP -5/0",null,null,null,null,null,"storis 5/0"]
["5.7.4.","Siūlo ilgis 45-75 cm",null,null,null,null,null,"ilgis 75cm"]
["5.7.5.","Siūlo spalva - Dažytas",null,null,null,null,null,"dažytas (violet)"]
["5.7.6.","Adatos tipas - pjaunanti 3/8",null,null,null,null,null,"pjaunanti 3/8"]
["5.7.7.","Adatos ilgis 15-16 mm",null,null,null,null,null,"16 mm"]
["5.8.","Besirezorbuojantis sintetinis iš glikolido ir kapralaktono chirurginis siūlas",420,"vnt",1.21,{"$f":"IF(ISBLANK(E194),\"\", PRODUCT(C194,E194))","v":508.2},"SMI. Surgicryl Monofast. Ref 16101516"]
["5.8.1.","Besirezorbuojantis sintetinis, monofilamentinis siūlas, pagamintas iš glikolido ir kapralaktono.",null,null,null,null,null,"Besirezorbuojantis sintetinis, monopilamentinis, pagamintas iš glikoilido ir kaprolaktono. Katalogas 33-38 psl"]
["5.8.2.","Pilna rezorbcija po 90-120±5% dienų. Stiprumo išlaikymas po 1 savaitės 50 - 60±10%, po 2 savaičių 20- 30±10% ",null,null,null,null,null,"Pilna rezorbcija po 90-12 dienų. Stiprumo išlaikymas 60% po 1 savaitės (7 dienų),"]
["5.8.3.","Siūlo storis USP -5/0",null,null,null,null,null,"storis 5/0"]
["5.8.4.","Siūlo ilgis 45-75 cm",null,null,null,null,null,"ilgis 75cm"]
["5.8.5.","Siūlo spalva - Bespalvis",null,null,null,null,null,"bespalvis"]
["5.8.6.","Adatos tipas - pjaunanti 3/8",null,null,null,null,null,"pjaunanti 3/8"]
["5.8.7.","Adatos ilgis 15-16 mm",null,null,null,null,null,"16 mm"]
["5.9.","Besirezorbuojantis sintetinis iš glikolido ir kapralaktono chirurginis siūlas",120,"vnt",1.22,{"$f":"IF(ISBLANK(E202),\"\", PRODUCT(C202,E202))","v":146.4},"SMI. Surgicryl Monofast. Ref 16071512"]
["5.9.1.","Besirezorbuojantis sintetinis, monofilamentinis siūlas, pagamintas iš glikolido ir kapralaktono.",null,null,null,null,null,"Besirezorbuojantis sintetinis, monopilamentinis, pagamintas iš glikoilido ir kaprolaktono. Katalogas 33-38 psl"]
["5.9.2.","Pilna rezorbcija po 90-120±5% dienų. Stiprumo išlaikymas po 1 savaitės 50 - 60±10%, po 2 savaičių 20- 30±10% ",null,null,null,null,null,"Pilna rezorbcija po 90-12 dienų. Stiprumo išlaikymas 60% po 1 savaitės (7 dienų),"]
["5.9.3.","Siūlo storis USP -6/0",null,null,null,null,null,"storis 6/0"]
["5.9.4.","Siūlo ilgis 45-75 cm",null,null,null,null,null,"ilgis 45cm"]
["5.9.5.","Siūlo spalva - Bespalvis arba dažytas",null,null,null,null,null,"bespalvis"]
["5.9.6.","Adatos tipas - pjaunanti 3/8",null,null,null,null,null,"pjaunanti 3/8"]
["5.9.7.","Adatos ilgis 12-13 mm",null,null,null,null,null,"12 mm"]
["5.10.","Besirezorbuojantis sintetinis iš glikolido ir kapralaktono chirurginis siūlas",120,"vnt.",1.23,{"$f":"IF(ISBLANK(E210),\"\", PRODUCT(C210,E210))","v":147.6},"SMI. Surgicryl Monofast. Ref 16201519"]
["5.10.1.","Besirezorbuojantis sintetinis, monofilamentinis siūlas, pagamintas iš glikolido ir kapralaktono.",null,null,null,null,null,"Besirezorbuojantis sintetinis, monopilamentinis, pagamintas iš glikoilido ir kaprolaktono. Katalogas 33-38 psl"]
["5.10.2.","Pilna rezorbcija po 90-120±5% dienų. Stiprumo išlaikymas po 1 savaitės 50 - 60±10%, po 2 savaičių 20- 30±10% ",null,null,null,null,null,"Pilna rezorbcija po 90-12 dienų. Stiprumo išlaikymas 60% po 1 savaitės (7 dienų),"]
["5.10.3.","Siūlo storis 3/0",null,null,null,null,null,"storis 3/0"]
["5.10.4.","Siūlo ilgis 70 - 75 cm",null,null,null,null,null,"ilgis 75cm"]
["5.10.5.","Siūlo spalva - bespalvis",null,null,null,null,null,"bespalvis"]
["5.10.6.","Siūlų skaičius pakelyje  ne daugiau 1 vnt.",null,null,null,null,null,"siūlas 1 vnt"]
["5.10.7.","Adatos tipas - pjaunanti 3/8",null,null,null,null,null,"pjaunanti  3/8"]
["5.10.8.","Adatų skaičius ne daugiau 1 vnt.",null,null,null,null,null,"adata 1 vnt"]
["5.10.9.","Adatos ilgis - 19 mm (±1mm)",null,null,null,null,null,"19 mm"]
["5.11.","Besirezorbuojantis sintetinis iš glikolido ir kapralaktono chirurginis siūlas",120,"vnt.",1.25,{"$f":"IF(ISBLANK(E220),\"\", PRODUCT(C220,E220))","v":150},"SMI. Surgicryl Monofast. Ref 16201524"]
["5.11.1.","Besirezorbuojantis sintetinis, monofilamentinis siūlas, pagamintas iš glikolido ir kapralaktono.",null,null,null,null,null,"Besirezorbuojantis sintetinis, monopilamentinis, pagamintas iš glikoilido ir kaprolaktono. Katalogas 33-38 psl"]
["5.11.2.","Pilna rezorbcija po 90-120±5% dienų. Stiprumo išlaikymas po 1 savaitės 50 - 60±10%, po 2 savaičių 20- 30±10% ",null,null,null,null,null,"Pilna rezorbcija po 90-12 dienų. Stiprumo išlaikymas 60% po 1 savaitės (7 dienų),"]
["5.11.3.","Siūlo storis 3/0",null,null,null,null,null,"storis 3/0"]
["5.11.4.","Siūlo ilgis 70 - 75 cm",null,null,null,null,null,"ilgis 75cm"]
["5.11.5.","Siūlo spalva - bespalvis",null,null,null,null,null,"bespalvis"]
["5.11.6.","Siūlų skaičius pakelyje ne daugiau 1 vnt.",null,null,null,null,null,"siūlas 1 vnt"]
["5.11.7.","Adatos tipas -pjaunanti 3/8",null,null,null,null,null,"pjaunanti  3/8"]
["5.11.8.","Adatų skaičius  ne daugiau 1 vnt.",null,null,null,null,null,"adata 1 vnt"]
["5.11.9.","Adatos ilgis 24 mm (±1mm)",null,null,null,null,null,"24 mm"]
["5.12.","Besirezorbuojantis sintetinis iš glikolido ir kapralaktono chirurginis siūlas",200,"vnt.",1.22,{"$f":"IF(ISBLANK(E230),\"\", PRODUCT(C230,E230))","v":244},"SMI. Surgicryl Monofast. Ref 16151519"]
["5.12.1.","Besirezorbuojantis sintetinis, monofilamentinis siūlas, pagamintas iš glikolido ir kapralaktono.",null,null,null,null,null,"Besirezorbuojantis sintetinis, monopilamentinis, pagamintas iš glikoilido ir kaprolaktono. Katalogas 33-38 psl"]
["5.12.2.","Pilna rezorbcija po 90-120±5% dienų. Stiprumo išlaikymas po 1 savaitės 50 - 60±10%, po 2 savaičių 20- 30±10% ",null,null,null,null,null,"Pilna rezorbcija po 90-12 dienų. Stiprumo išlaikymas 60% po 1 savaitės (7 dienų),"]
["5.12.3.","Siūlo storis 4/0",null,null,null,null,null,"storis 4/0"]
["5.12.4.","Siūlo ilgis 70 - 75 cm",null,null,null,null,null,"ilgis 75cm"]
["5.12.5.","Siūlo spalva - bespalvis",null,null,null,null,null,"bespalvis"]
["5.12.6.","Siūlų skaičius pakelyje ne daugiau 1 vnt.",null,null,null,null,null,"siūlas 1 vnt"]
["5.12.7.","Adatos tipas -pjaunanti 3/8",null,null,null,null,null,"pjaunanti  3/8"]
["5.12.8.","Adatų skaičius  ne daugiau 1 vnt.",null,null,null,null,null,"adata 1 vnt"]
["5.12.9.","Adatos ilgis 19 mm (±1mm)",null,null,null,null,null,"19 mm"]
["5.13.","Besirezorbuojantis sintetinis iš glikolido ir kapralaktono chirurginis siūlas",200,"vnt.",1.29,{"$f":"IF(ISBLANK(E240),\"\", PRODUCT(C240,E240))","v":258},"SMI. Surgicryl Monofast. Ref 16151526"]
["5.13.1.","Besirezorbuojantis sintetinis, monofilamentinis siūlas, pagamintas iš glikolido ir kapralaktono.",null,null,null,null,null,"Besirezorbuojantis sintetinis, monopilamentinis, pagamintas iš glikoilido ir kaprolaktono. Katalogas 33-38 psl"]
["5.13.2.","Pilna rezorbcija po 90-120±5% dienų. Stiprumo išlaikymas po 1 savaitės 50 - 60±10%, po 2 savaičių 20- 30±10% ",null,null,null,null,null,"Pilna rezorbcija po 90-12 dienų. Stiprumo išlaikymas 60% po 1 savaitės (7 dienų),"]
["5.13.3.","Siūlo storis 4/0",null,null,null,null,null,"storis 4/0"]
["5.13.4.","Siūlo ilgis 70 - 75 cm",null,null,null,null,null,"ilgis 75cm"]
["5.13.5.","Siūlo spalva - bespalvis",null,null,null,null,null,"bespalvis"]
["5.13.6.","Siūlų skaičius pakelyje ne daugiau 1 vnt.",null,null,null,null,null,"siūlas 1 vnt"]
["5.13.7.","Adatos tipas - pjaunanti 3/8",null,null,null,null,null,"pjaunanti  3/8"]
["5.13.8.","Adatų skaičius ne daugiau 1 vnt.",null,null,null,null,null,"adata 1 vnt"]
["5.13.9.","Adatos ilgis 26-27 mm",null,null,null,null,null,"26 mm"]
["5.14.","Besirezorbuojantis sintetinis iš glikolido ir kapralaktono chirurginis siūlas",200,"vnt.",1.23,{"$f":"IF(ISBLANK(E250),\"\", PRODUCT(C250,E250))","v":246},"SMI. Surgicryl Monofast. Ref 16101516"]
["5.14.1.","Besirezorbuojantis sintetinis, monofilamentinis siūlas, pagamintas iš glikolido ir kapralaktono.",null,null,null,null,null,"Besirezorbuojantis sintetinis, monopilamentinis, pagamintas iš glikoilido ir kaprolaktono. Katalogas 33-38 psl"]
["5.14.2.","Pilna rezorbcija po 90-120±5% dienų. Stiprumo išlaikymas po 1 savaitės 50 - 60±10%, po 2 savaičių 20- 30±10% ",null,null,null,null,null,"Pilna rezorbcija po 90-12 dienų. Stiprumo išlaikymas 60% po 1 savaitės (7 dienų),"]
["5.14.3.","Siūlo storis 5/0",null,null,null,null,null,"storis 5/0"]
["5.14.4.","Siūlo ilgis 75 cm (± 1cm)",null,null,null,null,null,"ilgis 75cm"]
["5.14.5.","Siūlo spalva - bespalvis",null,null,null,null,null,"bespalvis"]
["5.14.6.","Siūlų skaičius pakelyje ne daugiau 1 vnt.",null,null,null,null,null,"siūlas 1 vnt"]
["5.14.7.","Adatos tipas - pjaunanti 3/8",null,null,null,null,null,"pjaunanti  3/8"]
["5.14.8.","Adatų skaičius ne daugiau 1 vnt.",null,null,null,null,null,"adata 1 vnt"]
["5.14.9.","Adatos ilgis 16 mm (±1mm)",null,null,null,null,null,"16 mm"]
[null,null,null,null,"Suma be PVM",{"$f":"IF((COUNT(C138:C259)<>COUNT(F138:F259)),\"\", SUM(F138:F259))","v":5187},{"$f":"IF((COUNT(C138:C259)<>COUNT(F138:F259)),\"Neužpildytos visų objektų kainos\", \"\")","v":""}]
[null,null,null,null,"PVM suma",{"$f":"F260*1.05-F260","v":259.35000000000036}]
[null,null,null,null,"Suma su PVM",{"$f":"IF(ISBLANK(F261), \"\", SUM(F260:F261))","v":5446.35}]

{"sheet":"Subtiekėjai ir priedai","index":1,"n_rows":86,"n_cols":11,"rows_kept":86,"cut":false,"hidden":false,"merged":[[14,0,14,1],[13,0,13,1],[12,0,12,1],[14,2,14,4],[13,2,13,4],[12,2,12,4],[1,0,2,10],[16,0,16,9],[7,5,7,7],[6,5,6,7],[7,8,7,9],[6,8,6,9],[7,0,7,1],[6,0,6,1],[7,2,7,4],[6,2,6,4],[5,2,5,4],[5,8,5,9],[4,8,4,9],[9,0,9,10],[11,8,11,9],[11,5,11,7],[4,5,4,7],[4,2,4,4],[18,0,18,9],[20,7,20,9],[20,1,20,6],[4,0,4,1],[5,5,5,7],[5,0,5,1],[11,2,11,4],[11,0,11,1],[14,5,14,7],[13,5,13,7],[12,5,12,7],[14,8,14,9],[13,8,13,9],[12,8,12,9],[28,7,28,9],[23,7,23,9],[22,7,22,9],[21,7,21,9],[30,7,30,9],[29,7,29,9],[27,7,27,9],[26,7,26,9],[25,7,25,9],[24,7,24,9],[31,1,31,6],[30,1,30,6],[33,0,33,9],[38,4,38,9],[36,4,36,9],[38,0,38,3],[36,0,36,3],[31,7,31,9],[24,1,24,6],[23,1,23,6],[22,1,22,6],[21,1,21,6],[29,1,29,6],[28,1,28,6],[27,1,27,6],[26,1,26,6],[25,1,25,6]]}
[]
["Ūkio subjektai (įskaitant kvazisubtiekėjus - fiziniai asmenys, kuriuos ketinama įdarbinti pirkimo laimėjimo atveju), kurių pajėgumais tiekėjas remiasi, kad atitiktų keliamus kvalifikacijos reikalavimus:"]
[]
[]
["Pavadinimas*",null,"Kodas, adresas",null,null,"Perduodami įsipareigojimai",null,null,"Perduodamų įsipareigojimų dalis nuo visos pirkimo sutarties (Eur arba %)",null,"Kval. Reikalavimo Nr."]
[]
[]
[]
[]
["Subtiekėjams / subteikėjams / subrangovams numatomos perduoti veiklos (privaloma nurodyti) ir šių ūkio subjektų pavadinimai (jei žinomi):"]
[]
["Pavadinimas",null,"Kodas, adresas",null,null,"Perduodama veikla*",null,null,"Perduodamos veiklos dalis nuo visos pirkimo sutarties (Eur arba %)"]
[]
[]
[]
[]
[]
[]
["Kartu su pasiūlymu pateikiami šie dokumentai:"]
[]
["Nr.","Dokumento  pavadinimas",null,null,null,null,null,"Dokumentas yra konfidencialus? Taip/Ne"]
[1,"Jungtinės veiklos kopija (jei taikoma)"]
[2,"Europos bendrasis viešųjų pirkimų dokumentas",null,null,null,null,null,"Ne"]
[3,"Subtiekimo sutartis, ketinimų protokolas, preliminarios sutartys ar kiti dokumentai, patvirtinantys, kad laimėjus pirkimą tiekėjui bus prieinami kitų ūkio subjektų ištekliai (jei pasitelkiami kvalifikacijos atitikimui)"]
[4,"Katalogas",null,null,null,null,null,"Ne"]
[]
[]
[]
[]
[]
[]
[]
[]
["Pasiūlyme nurodyta Prekės kaina, išskyrus jos sudedamąsias dalis, subtiekėjai, taip pat kita informacija, kuri teisės aktų nustatyta tvarka turi būti skelbiama arba kitokiu būdu viešai prieinama visuomenei, nėra laikoma konfidencialia informacija. Konfidencialią informaciją sudaro, visų pirma, komercinė (gamybinė) paslaptis ir konfidencialieji pasiūlymų aspektai. Informacija, kurią viešai skelbti įpareigoja Lietuvos Respublikos įstatymai, negali būti tiekėjo nurodoma kaip konfidenciali, todėl, tiekėjui nurodžius tokią informaciją kaip konfidencialią, perkančioji organizacija turi teisę ją skelbti. Jei tiekėjas nenurodo konfidencialios informacijos, laikoma, kad konfidencialios informacijos tiekėjo pasiūlyme nėra. Vadovaujantis Informacijos viešinimo Centrinėje viešųjų pirkimų informacinėje sistemoje tvarkos aprašu, patvirtintu Viešųjų pirkimų tarnybos direktoriaus 2017 m. birželio 19 d. įsakymu Nr. 1S-91 „Dėl Informacijos viešinimo Centrinėje viešųjų pirkimų informacinėje sistemoje tvarkos aprašo patvirtinimo“, perkančioji organizacija laimėjusio dalyvio pasiūlymą, išskyrus informaciją, kurią tiekėjas nurodė kaip konfidencialią, paskelbs CVP IS."]
[]
[]
["Tiekėjo arba jo įgalioto asmens pareigų pavadinimas:",null,null,null,"Direktorius"]
[]
["Pasirašančio asmens vardas ir pavardė:",null,null,null,"Liutauras Dauderys"]
[]
[]
[]
[]
[]
[]
[]
[]
[]
[]
[]
[]
[]
[]
[]
[]
[]
[]
[]
[]
[]
[]
[]
[]
[]
[]
[]
[]
[]
[]
[]
[]
[]
[]
[]
[]
[]
[]
[]
[]
[]
[]
[]
[]
[]
[]
["6890-2 2022-10-20 10:21:15"]